fUST/lending_fUST_20260218
["ID","MTS","AMOUNT","RATE_DAILY","PERIOD"]
[405845168,1771357370968,-500.0,0.00013273,2]
[405845169,1771357370978,-500.0,0.00013273,2]
[405845170,1771357370988,-180.74681768,0.00013392,2]
[405845171,1771357370997,-500.0,0.00013392,2]
[405845172,1771357371006,-206.65785599,0.00013392,2]
[405845173,1771357371016,-162.22618032,0.00013392,2]
[405845174,1771357371026,-341.14396099,0.00013392,2]
[405845175,1771357371035,-500.0,0.00013392,2]
[405845176,1771357371045,-229.69122146,0.00013392,2]
[405845177,1771357405432,1676.68251278,0.00013001,2]
[405845178,1771357411728,-34.24134723,0.00013259,2]
[405845179,1771357411743,-1531.51730554,0.00013259,2]
[405845180,1771357411753,-34.24134723,0.00013393,2]
[405845183,1771357449866,863.50852612,0.00013001,2]
[405845185,1771357535148,-186.43899681,0.00013259,2]
[405845186,1771357535168,-500.0,0.00013273,2]
[405845187,1771357535188,-173.97860575,0.00013273,2]
[405845188,1771357535209,-132.43604955,0.00013273,2]
[405845189,1771357632085,-1326.01785151,0.0001314,2]
[405845190,1771357636081,-421.22245041,0.0001314,2]
[405845191,1771357640118,-508.03683823,0.0001314,2]
[405845204,1771357747405,5000.0,0.00013001,2]
[405845205,1771357749078,-150.0,0.00013206,2]
[405845206,1771357749100,-367.56395045,0.00013273,2]
[405845207,1771357749119,-485.76510385,0.00013273,2]
[405845208,1771357749139,-575.75865277,0.00013393,2]
[405845209,1771357749159,-1200.0,0.00013698,2]
[405845210,1771357749179,-300.0,0.00013698,2]
[405845211,1771357749202,-74.85581032,0.00013699,2]
[405845212,1771357774091,-1019.9537437,0.00013562,2]
[405845213,1771357774113,-425.14418968,0.00013699,2]
[405845214,1771357774132,-647.90672284,0.00013699,2]
[405845215,1771357774152,-501.19299574,0.00013699,2]
[405845216,1771357774171,-507.75830793,0.00013699,2]
[405845217,1771357774190,-162.17860886,0.00013699,2]
[405845218,1771357774209,-500.0,0.00013699,2]
[405845219,1771357774227,-504.92646284,0.00013699,2]
[405845220,1771357774247,-500.0,0.00013699,2]
[405845221,1771357774267,-501.71719372,0.00013699,2]
[405845222,1771357774287,-272.0,0.00013699,2]
[405845223,1771357774307,-604.06274734,0.00013699,2]
[405845224,1771357774327,-500.38171454,0.00013699,2]
[405845225,1771357774348,-500.91787427,0.00013699,2]
[405845226,1771357774368,-500.94097158,0.00013699,2]
[405845227,1771357774390,-438.16441978,0.00013699,2]
[405845228,1771357774410,-178.7341795,0.0001371,2]
[405845229,1771357774430,-2315.5638652,0.00013742,2]
[405845230,1771357774449,-1177.7677426,0.00013742,2]
[405845231,1771357774469,-1603.76862021,0.00013742,2]
[405845232,1771357774495,-413.12072569,0.00013742,2]
[405845233,1771357774513,-150.0,0.00013973,2]
[405845234,1771357804142,160.9611424,0.00013699,2]
[405845271,1771357831610,-500.0,0.00014246,2]
[405845272,1771357831619,-297.85615524,0.00014246,2]
[405845360,1771357837718,-202.14384476,0.00014246,2]
[405845362,1771357837728,-170.01887552,0.00014247,2]
[405845380,1771357837901,-56.44853758,0.00014247,2]
[405845911,1771357843009,-34.26380466,0.00014247,2]
[405845913,1771357843021,-189.88697358,0.00014247,2]
[405845915,1771357843031,-1000.0,0.00014247,2]
[405845917,1771357843042,-215.00739121,0.000144,2]
[405847147,1771357893100,501.14907664,0.00013699,2]
[405847148,1771357893433,154.0,0.00013973,2]
[405847204,1771358539040,500.0,0.00012861,2]
[405847210,1771358678693,3624.87847786,0.00013001,2]
[405847213,1771358730135,-344.72969836,0.00013273,2]
[405847216,1771358829091,-61.46310726,0.00013273,2]
[405847217,1771358829113,-129.06825269,0.00013273,2]
[405847220,1771358852089,-370.93174731,0.00013273,2]
[405847221,1771358852112,-460.22167619,0.00013273,2]
[405847222,1771358852133,-150.0,0.00013318,2]
[405847223,1771358852152,-610.0,0.00013365,2]
[405847224,1771358852172,-1061.2771777,0.00013622,2]
[405847231,1771358957108,-541.31760235,0.00013273,2]
[405847232,1771358957128,-138.7228223,0.00013622,2]
[405847233,1771358957148,-5155.6701029,0.00013624,2]
[405847234,1771358957168,-300.0,0.0001363,2]
[405847235,1771358957190,-300.0,0.00013631,2]
[405847236,1771358957210,-300.0,0.00013631,2]
[405847237,1771358957231,-300.0,0.00013631,2]
[405847238,1771358957251,-300.0,0.00013631,2]
[405847239,1771358957272,-300.0,0.00013631,2]
[405847240,1771358957293,-300.0,0.00013631,2]
[405847241,1771358957315,-300.0,0.00013631,2]
[405847242,1771358957336,-300.0,0.00013631,2]
[405847243,1771358957357,-300.0,0.00013631,2]
[405847244,1771358957382,-300.0,0.00013631,2]
[405847245,1771358957404,-300.0,0.00013631,2]
[405847246,1771358957425,-129.38805222,0.00013631,2]
[405847247,1771358964090,-170.61194778,0.00013631,2]
[405847248,1771358964113,-300.0,0.00013631,2]
[405847249,1771358964135,-300.0,0.00013631,2]
[405847250,1771358964158,-300.0,0.00013631,2]
[405847251,1771358964180,-1736.6728989,0.00013636,2]
[405847252,1771358964200,-883.325807,0.00013636,2]
[405847253,1771358964220,-4753.3868679,0.00013636,2]
[405847254,1771358964244,-1000.0,0.00013699,2]
[405847255,1771358964264,-500.0,0.00013699,2]
[405847256,1771358964286,-420.44406283,0.00013699,2]
[405847281,1771359031939,-377.97014412,0.00013273,2]
[405847282,1771359031949,-181.0,0.00013622,2]
[405847283,1771359031960,-1200.0,0.00013622,2]
[405847284,1771359031970,-500.0,0.00013623,2]
[405847285,1771359031983,-500.0,0.00013623,2]
[405847286,1771359031992,-500.0,0.00013623,2]
[405847287,1771359032001,-560.20284882,0.00013623,2]
[405847288,1771359032010,-500.0,0.00013623,2]
[405847289,1771359032021,-500.0,0.00013623,2]
[405847290,1771359032030,-500.0,0.00013623,2]
[405847291,1771359032042,-500.0,0.00013623,2]
[405847292,1771359032052,-150.0,0.00013629,2]
[405847293,1771359032061,-436.74727407,0.00013635,2]
[405847294,1771359032069,-500.0,0.00013698,2]
[405847295,1771359032080,-79.55593717,0.00013699,2]
[405847296,1771359032090,-500.0,0.00013699,2]
[405847297,1771359032102,-500.0,0.00013699,2]
[405847298,1771359032114,-168.67864975,0.00013699,2]
[405847310,1771359037844,-331.32135025,0.00013699,2]
[405847311,1771359037855,-500.0,0.00013699,2]
[405847312,1771359037865,-524.19887515,0.00013699,2]
[405847313,1771359037877,-191.98959085,0.00013796,2]
[405847314,1771359037888,-300.0,0.00013894,2]
[405847315,1771359037899,-300.0,0.00013894,2]
[405847316,1771359037909,-300.0,0.00013894,2]
[405847317,1771359037920,-300.0,0.00013894,2]
[405847318,1771359037931,-300.0,0.00013894,2]
[405847319,1771359037942,-300.0,0.00013894,2]
[405847320,1771359037954,-300.0,0.00013894,2]
[405847321,1771359037964,-300.0,0.00013894,2]
[405847322,1771359037974,-300.0,0.00013894,2]
[405847323,1771359037988,-300.0,0.00013894,2]
[405847324,1771359037999,-300.0,0.00013894,2]
[405847325,1771359038010,-300.0,0.00013894,2]
[405847326,1771359038023,-149.04369631,0.00013894,2]
[405847375,1771359040123,-150.95630369,0.00013894,2]
[405847378,1771359040135,-300.0,0.00013894,2]
[405847380,1771359040146,-300.0,0.00013894,2]
[405847382,1771359040157,-825.04315784,0.000139,2]
[405847677,1771359043195,-174.95684216,0.000139,2]
[405847679,1771359043206,-632.03443338,0.00014076,2]
[405848990,1771359253035,762.92463476,0.00013001,2]
[405848997,1771359439367,5000.0,0.00013001,2]
[405848999,1771359746337,669.1336869,0.00012854,2]
[405849000,1771359939238,-150.0,0.00013239,2]
[405849001,1771359939265,-133.83736951,0.00013273,2]
[405849013,1771360041070,-265.71477948,0.00013273,2]
[405849014,1771360041090,-500.0,0.00013273,2]
[405849015,1771360041110,-500.0,0.00013273,2]
[405849016,1771360041130,-150.0,0.0001338,2]
[405849017,1771360041150,-300.0,0.00013486,2]
[405849018,1771360041172,-300.0,0.00013486,2]
[405849019,1771360041192,-300.0,0.00013487,2]
[405849020,1771360041212,-300.0,0.00013487,2]
[405849021,1771360041233,-220.12309199,0.00013487,2]
[405849022,1771360049091,-979.87690801,0.00013487,2]
[405849023,1771360049112,-177.72835901,0.00013487,2]
[405849024,1771360049132,-356.4050875,0.00013487,2]
[405849025,1771360141874,154.81805368,0.00013001,2]
[405849026,1771360145136,-300.0,0.00013199,2]
[405849027,1771360145157,-24972.99999908,0.000132,2]
[405849028,1771360145177,-118.6290535,0.00013487,2]
[405849029,1771360145200,-205.10288631,0.00013487,2]
[405849030,1771360145222,-500.0,0.00013487,2]
[405849031,1771360145243,-500.0,0.00013487,2]
[405849032,1771360145264,-500.0,0.00013487,2]
[405849033,1771360145291,-500.0,0.00013487,2]
[405849034,1771360145314,-500.0,0.00013487,2]
[405849035,1771360145337,-384.56130676,0.00013487,2]
[405849036,1771360145358,-557.14204963,0.00013487,2]
[405849037,1771360145384,-500.0,0.00013487,2]
[405849038,1771360145406,-487.98543336,0.00013487,2]
[405849039,1771360145429,-500.0,0.00013487,2]
[405849040,1771360145451,-500.0,0.00013487,2]
[405849041,1771360145474,-500.0,0.00013487,2]
[405849042,1771360145496,-500.0,0.00013487,2]
[405849043,1771360145518,-500.0,0.00013487,2]
[405849044,1771360145553,-500.0,0.00013487,2]
[405849045,1771360145579,-500.0,0.00013487,2]
[405849046,1771360145600,-901.46549637,0.00013488,2]
[405849047,1771360145621,-305.72309185,0.00013491,2]
[405849048,1771360145641,-8473.5262564,0.00013492,2]
[405849049,1771360145661,-169.68354956,0.00013564,2]
[405849050,1771360145682,-30.52592184,0.00013564,2]
[405849051,1771360168084,-274.90446737,0.00013564,2]
[405849052,1771360168103,-542.98735859,0.00013564,2]
[405849053,1771360168120,-4092.9752384,0.00013684,2]
[405849054,1771360168138,-151.0,0.00013699,2]
[405849055,1771360168155,-445.0193537,0.00013699,2]
[405849056,1771360168173,-186.0,0.00013699,2]
[405849057,1771360168191,-430.05842293,0.00013699,2]
[405849058,1771360168209,-611.48591482,0.00013699,2]
[405849059,1771360168226,-500.0,0.00013699,2]
[405849060,1771360168244,-500.0,0.00013699,2]
[405849061,1771360168263,-500.0,0.00013699,2]
[405849062,1771360168281,-500.0,0.00013699,2]
[405849063,1771360168300,-169.47277479,0.00013699,2]
[405849081,1771360231893,-500.0,0.00013273,2]
[405849082,1771360231903,-500.0,0.00013273,2]
[405849083,1771360231913,-500.0,0.00013273,2]
[405849084,1771360231923,-305.00366171,0.00013564,2]
[405849085,1771360231932,-55.43821134,0.00013699,2]
[405849086,1771360231942,-452.61434572,0.00013821,2]
[405849089,1771360231951,-500.0,0.00013821,2]
[405849090,1771360231960,-501.63323074,0.00013821,2]
[405849092,1771360231969,-277.93270498,0.00013894,2]
[405849094,1771360231979,-308.55356778,0.00013894,2]
[405849096,1771360231987,-264.60454623,0.00013894,2]
[405849098,1771360231996,-500.0,0.0001397,2]
[405849100,1771360232005,-512.36413722,0.0001397,2]
[405849102,1771360232015,-300.0,0.0001397,2]
[405849104,1771360232024,-300.0,0.0001397,2]
[405849106,1771360232033,-123.86923987,0.0001397,2]
[405849113,1771360232121,-176.13076013,0.0001397,2]
[405849114,1771360232131,-300.0,0.00013971,2]
[405849116,1771360232140,-54.12083805,0.00013971,2]
[405849117,1771360232152,-245.87916195,0.00013971,2]
[405849118,1771360232161,-134.18429597,0.00013971,2]
[405849126,1771360238045,-662.4943552,0.00013603,2]
[405849127,1771360238055,-165.81570403,0.00013971,2]
[405849128,1771360238064,-300.0,0.00013971,2]
[405849129,1771360238074,-300.0,0.00013971,2]
[405849130,1771360238083,-300.0,0.00013971,2]
[405849131,1771360238093,-300.0,0.00013971,2]
[405849132,1771360238102,-300.0,0.00013971,2]
[405849133,1771360238111,-300.0,0.00013971,2]
[405849134,1771360238121,-300.0,0.00013971,2]
[405849135,1771360238130,-300.0,0.00013971,2]
[405849136,1771360238139,-300.0,0.00013971,2]
[405849137,1771360238148,-300.0,0.00013971,2]
[405849138,1771360238158,-300.0,0.00013971,2]
[405849139,1771360238167,-300.0,0.00013971,2]
[405849140,1771360238176,-500.27886896,0.00013978,2]
[405849141,1771360238186,-476.28818322,0.00013985,2]
[405849142,1771360238195,-422.29159234,0.00014149,7]
[405849143,1771360238205,-402.04075723,0.00014155,7]
[405849144,1771360238214,-888.49527128,0.00014179,2]
[405849145,1771360238224,-845.8878134,0.00014185,2]
[405849146,1771360238234,-252.75016738,0.00014297,2]
[405849147,1771360238243,-600.0,0.00014357,2]
[405849148,1771360238252,-336.66187587,0.00014454,2]
[405849149,1771360238262,-665.260704,0.00014647,2]
[405849150,1771360238271,-488.3906173,0.00014677,2]
[405849151,1771360238280,-800.0,0.00014826,2]
[405849152,1771360238290,-270.12774819,0.000149,2]
[405849153,1771360238299,-369.56429919,0.00014921,2]
[405849154,1771360238308,-500.0,0.0001493,2]
[405849155,1771360238317,-257.9912321,0.00015068,2]
[405849156,1771360238332,-416.82229467,0.00015174,2]
[405849157,1771360238343,-188.56961675,0.00015174,2]
[405849158,1771360238352,-339.08588483,0.00015174,2]
[405849159,1771360238363,-662.4943552,0.00015291,2]
[405849160,1771360238373,-177.0,0.0001538,2]
[405849161,1771360238382,-1060.623973,0.00015386,2]
[405849162,1771360238392,-214.0887888,0.000154,2]
[405849163,1771360238403,-913.2662204,0.00015436,2]
[405849164,1771360238412,-253.34012699,0.00015649,2]
[405849165,1771360238422,-168.3888056,0.00015649,2]
[405849166,1771360238431,-174.61919141,0.00015649,2]
[405849167,1771360238440,-181.08010149,0.00015649,2]
[405849168,1771360238449,-250.0,0.00015649,2]
[405849169,1771360238458,-187.78006525,0.00015649,2]
[405849170,1771360238468,-250.0,0.00015649,2]
[405849171,1771360238477,-250.0,0.00015649,2]
[405849172,1771360238487,-500.0,0.00015649,2]
[405849173,1771360238496,-500.0,0.00015649,2]
[405849174,1771360238506,-194.72792766,0.00015649,2]
[405849175,1771360238516,-500.0,0.00015649,2]
[405849176,1771360238526,-201.93286099,0.00015649,2]
[405849177,1771360238535,-500.0,0.00015649,2]
[405849178,1771360238545,-209.40437684,0.00015649,2]
[405849179,1771360238554,-500.0,0.00015649,2]
[405849180,1771360238566,-217.15233878,0.00015649,2]
[405849181,1771360238583,-500.0,0.00015649,2]
[405849182,1771360238602,-225.18697532,0.00015649,2]
[405849183,1771360238618,-500.0,0.00015649,2]
[405849184,1771360238628,-258.12131247,0.00015649,2]
[405849185,1771360238637,-233.51889341,0.00015649,2]
[405849186,1771360238648,-500.0,0.00015649,2]
[405849187,1771360238657,-242.15909246,0.00015649,2]
[405849188,1771360238667,-500.0,0.00015649,2]
[405849189,1771360238677,-251.11897888,0.00015649,2]
[405849190,1771360238687,-500.0,0.00015649,2]
[405849191,1771360238696,-260.4103811,0.00015649,2]
[405849192,1771360238707,-500.0,0.00015649,2]
[405849193,1771360238716,-270.0455652,0.00015649,2]
[405849194,1771360238727,-250.0,0.00015649,2]
[405849195,1771360238737,-500.0,0.00015649,2]
[405849196,1771360238748,-200.19753092,0.00015649,2]
[405849197,1771360238759,-250.0,0.00015649,2]
[405849198,1771360238770,-500.0,0.00015649,2]
[405849199,1771360238779,-250.0,0.00015649,2]
[405849200,1771360238790,-250.0,0.00015649,2]
[405849201,1771360238799,-250.0,0.00015649,2]
[405849202,1771360238811,-250.0,0.00015649,2]
[405849203,1771360238822,-250.0,0.00015649,2]
[405849204,1771360238831,-250.0,0.00015649,2]
[405849205,1771360238842,-250.0,0.00015649,2]
[405849206,1771360238851,-350.28828551,0.00015649,2]
[405849207,1771360238865,-236.6571969,0.00015777,2]
[405849208,1771360238877,-720.0,0.00015792,2]
[405849209,1771360238886,-203.777238,0.00015827,2]
[405849210,1771360238896,-381.0793188,0.0001583,2]
[405849211,1771360238907,-187.059385,0.00015861,2]
[405849212,1771360238917,-326.1077047,0.00016088,2]
[405849213,1771360239050,-484.52061305,0.00016438,2]
[405849214,1771360239063,-674.36,0.00016438,2]
[405849215,1771360239072,-500.0,0.00016438,2]
[405849216,1771360239083,-500.0,0.00016438,2]
[405849217,1771360239094,-500.0,0.00016438,2]
[405849218,1771360239106,-306.98877753,0.00016438,2]
[405849796,1771360245997,-211.4386091,0.00013699,2]
[405849798,1771360246007,-74.17042162,0.00016438,2]
[405849800,1771360246016,-500.0,0.00016438,2]
[405849802,1771360246025,-592.54744824,0.00016438,2]
[405849804,1771360246034,-338.71809041,0.00016438,2]
[405850837,1771360300185,-215.55614072,0.0001314,2]
[405850838,1771360300213,-90.85637797,0.00013273,2]
[405850855,1771360642527,453.89226738,0.00013001,2]
[405850885,1771361137506,655.079958,0.00012638,2]
[405850886,1771361151114,-607.0,0.00013206,2]
[405850887,1771361151136,-150.0,0.00013206,2]
[405850888,1771361151156,-240.0,0.00013272,2]
[405850889,1771361151176,-500.0,0.00013273,2]
[405850890,1771361151195,-354.33740536,0.00013273,2]
[405850891,1771361151214,-500.0,0.00013273,2]
[405850892,1771361151375,-381.63353352,0.00013273,2]
[405850893,1771361241087,-300.0,0.00013272,2]
[405850894,1771361241109,-118.58378715,0.00013272,2]
[405850895,1771361252358,500.0,0.00012442,2]
[405850896,1771361253088,-31.41621285,0.00013272,2]
[405850897,1771361253109,-283.52590786,0.00013273,2]
[405850899,1771361345092,-216.47409214,0.00013273,2]
[405850900,1771361345112,-500.0,0.00013273,2]
[405850901,1771361345131,-621.82890576,0.00013273,2]
[405850902,1771361345149,-623.15261663,0.00013273,2]
[405850903,1771361345169,-500.0,0.00013273,2]
[405850904,1771361345188,-500.0,0.00013273,2]
[405850905,1771361345207,-291.3552319,0.00013375,2]
[405850906,1771361345226,-303.57925462,0.00013673,2]
[405850907,1771361345246,-500.0,0.00013695,2]
[405850908,1771361345268,-500.0,0.00013695,2]
[405850909,1771361345288,-500.0,0.00013695,2]
[405850910,1771361345312,-500.0,0.00013695,2]
[405850911,1771361345331,-500.0,0.00013695,2]
[405850912,1771361345352,-500.0,0.00013695,2]
[405850913,1771361345372,-500.0,0.00013695,2]
[405850914,1771361345393,-500.0,0.00013695,2]
[405850915,1771361345414,-620.52321546,0.00013695,2]
[405850916,1771361345436,-500.0,0.00013695,2]
[405850917,1771361345458,-500.0,0.00013695,2]
[405850918,1771361345478,-500.0,0.00013695,2]
[405850919,1771361345499,-329.41852343,0.00013695,2]
[405850920,1771361345522,-500.0,0.00013695,2]
[405850921,1771361345542,-300.0,0.00013695,2]
[405850922,1771361345564,-500.0,0.00013695,2]
[405850923,1771361345584,-375.44291831,0.00013695,2]
[405850924,1771361345605,-500.0,0.00013695,2]
[405850925,1771361345625,-500.0,0.00013695,2]
[405850926,1771361345648,-271.05324419,0.00013695,2]
[405850927,1771361345673,-10404.12417214,0.00013696,2]
[405850928,1771361345701,-500.0,0.00013698,2]
[405850929,1771361345730,-435.662575,0.00013699,2]
[405850930,1771361345752,-603.48543028,0.00013699,2]
[405850931,1771361345773,-158.30619502,0.00013699,2]
[405850932,1771361345795,-372.37966543,0.00013699,2]
[405850933,1771361345817,-500.82558043,0.00013699,2]
[405850934,1771361345840,-232.6262067,0.00013699,2]
[405850935,1771361345862,-502.93000046,0.00013699,2]
[405850936,1771361345886,-500.0,0.00013699,2]
[405850937,1771361345915,-500.0,0.00013699,2]
[405850938,1771361345939,-500.0,0.00013699,2]
[405850939,1771361345963,-500.0,0.00013699,2]
[405850940,1771361345987,-191.85150353,0.00013699,2]
[405850941,1771361369017,156.71841656,0.0001362,2]
[405850954,1771361432091,-500.0,0.00013273,2]
[405850955,1771361432101,-500.0,0.00013273,2]
[405850956,1771361432110,-500.0,0.00013273,2]
[405850957,1771361432119,-500.0,0.00013273,2]
[405850958,1771361432129,-1021.04932604,0.0001362,2]
[405850959,1771361432140,-300.0,0.00013673,2]
[405850960,1771361432304,-501.14907664,0.00013699,2]
[405850961,1771361432320,-446.11714664,0.00013821,2]
[405850962,1771361432329,-163.28919191,0.00013821,2]
[405850963,1771361432340,-409.14362203,0.00013821,2]
[405850964,1771361432350,-1014.23489615,0.00013821,2]
[405850965,1771361432360,-220.23495117,0.00013821,2]
[405850966,1771361432370,-1997.43649514,0.00014146,2]
[405850967,1771361432382,-1180.62121703,0.00014146,2]
[405850999,1771361438503,-388.91126744,0.00014146,2]
[405851001,1771361438514,-300.0,0.00014221,2]
[405851003,1771361438524,-500.0,0.00014247,2]
[405851005,1771361438533,-300.0,0.00014248,2]
[405851007,1771361438543,-300.0,0.00014248,2]
[405851009,1771361438553,-300.0,0.00014248,2]
[405851011,1771361438563,-300.0,0.00014248,2]
[405851013,1771361438574,-300.0,0.00014248,2]
[405851015,1771361438583,-300.0,0.00014248,2]
[405851017,1771361438593,-300.0,0.00014248,2]
[405851019,1771361438603,-300.0,0.00014248,2]
[405851021,1771361438613,-300.0,0.00014248,2]
[405851022,1771361438623,-300.0,0.00014248,2]
[405851024,1771361438635,-300.0,0.00014248,2]
[405851026,1771361438645,-300.0,0.00014248,2]
[405851028,1771361438655,-300.0,0.00014248,2]
[405851031,1771361438667,-300.0,0.00014248,2]
[405851033,1771361438680,-300.0,0.00014248,2]
[405851035,1771361438690,-358.67692709,0.00014398,7]
[405851037,1771361438700,-189.73727093,0.00014521,2]
[405851039,1771361438711,-3896.72338315,0.00014522,2]
[405851041,1771361438721,-500.0,0.00014677,2]
[405851043,1771361438731,-500.0,0.00014848,2]
[405851045,1771361438742,-177.0,0.00015272,2]
[405851047,1771361438752,-233.63817019,0.00015649,2]
[405851049,1771361438762,-420.54870635,0.00015649,2]
[405851051,1771361438773,-746.89450247,0.00015649,2]
[405851053,1771361438784,-318.52165838,0.00015649,2]
[405851055,1771361438794,-333.69824908,0.00015649,2]
[405851057,1771361438804,-152.5185072,0.00015811,2]
[405851058,1771361438814,-191.98959085,0.00016051,2]
[405851060,1771361438824,-2257.63501004,0.00016122,2]
[405851062,1771361438833,-250.84133324,0.00016124,2]
[405851065,1771361438844,-500.0,0.00016188,2]
[405851067,1771361438854,-22361.8683471,0.00016189,2]
[405851068,1771361438865,-500.0,0.00016438,2]
[405851071,1771361438875,-398.2623635,0.00016438,2]
[405851072,1771361438885,-161.28190959,0.00016438,2]
[405851074,1771361438894,-339.86688461,0.00016438,2]
[405851077,1771361438904,-183.32284355,0.00016438,2]
[405851079,1771361438914,-159.25355972,0.00016438,2]
[405851081,1771361438925,-580.14,0.00016438,2]
[405851082,1771361438935,-357.05960715,0.00016438,2]
[405851084,1771361438945,-646.27,0.00016438,2]
[405851087,1771361438955,-187.059385,0.00016529,2]
[405851088,1771361438965,-446.54424147,0.00016591,2]
[405851089,1771361438974,-646.27,0.00016712,2]
[405851090,1771361438984,-600.0,0.00016766,2]
[405851091,1771361438994,-235.44895477,0.00016891,2]
[405851092,1771361439004,-547.66957134,0.00016907,2]
[405851093,1771361439014,-662.4943552,0.00016979,2]
[405851094,1771361439024,-646.27,0.00016986,2]
[405851095,1771361439034,-187.059385,0.00017197,2]
[405851096,1771361439044,-646.27,0.0001726,2]
[405851097,1771361439053,-204.0,0.00017272,2]
[405851098,1771361439064,-500.0,0.00017526,2]
[405851099,1771361439074,-630.0,0.00017527,2]
[405851100,1771361439085,-630.0,0.00017527,2]
[405851101,1771361439095,-630.0,0.00017527,2]
[405851102,1771361439105,-630.0,0.00017527,2]
[405851103,1771361439118,-630.0,0.00017527,2]
[405851104,1771361439128,-630.0,0.00017527,2]
[405851105,1771361439138,-630.0,0.00017527,2]
[405851106,1771361439148,-630.0,0.00017527,2]
[405851107,1771361439158,-630.0,0.00017527,2]
[405851108,1771361439168,-630.0,0.00017527,2]
[405851109,1771361439178,-630.0,0.00017527,2]
[405851110,1771361439191,-630.0,0.00017527,2]
[405851111,1771361439201,-630.0,0.00017527,2]
[405851112,1771361439211,-630.0,0.00017527,2]
[405851113,1771361439221,-630.0,0.00017527,2]
[405851114,1771361439232,-630.0,0.00017527,2]
[405851115,1771361439242,-630.0,0.00017527,2]
[405851116,1771361439252,-630.0,0.00017527,2]
[405851117,1771361439262,-630.0,0.00017527,2]
[405851118,1771361439272,-630.0,0.00017527,2]
[405851119,1771361439282,-630.0,0.00017527,2]
[405851121,1771361439292,-630.0,0.00017527,2]
[405851123,1771361439302,-630.0,0.00017527,2]
[405851125,1771361439311,-630.0,0.00017527,2]
[405851127,1771361439321,-630.0,0.00017527,2]
[405851129,1771361439331,-630.0,0.00017527,2]
[405851131,1771361439341,-630.0,0.00017527,2]
[405851133,1771361439351,-630.0,0.00017527,2]
[405851135,1771361439360,-541.26405396,0.00017527,2]
[405851136,1771361439370,-630.0,0.00017527,2]
[405851139,1771361439382,-630.0,0.00017527,2]
[405851141,1771361439393,-630.0,0.00017527,2]
[405851143,1771361439403,-240.61774082,0.00017527,2]
[405851144,1771361439413,-646.27,0.00017534,2]
[405851146,1771361439422,-280.0,0.00017597,2]
[405851148,1771361439433,-397.0,0.00017705,2]
[405851151,1771361439443,-422.0,0.00017726,2]
[405851152,1771361439452,-397.0,0.00017788,2]
[405851155,1771361439462,-646.27,0.00017808,2]
[405851157,1771361439472,-3566.96897954,0.00017825,2]
[405851158,1771361439483,-424.0,0.00017851,2]
[405851161,1771361439492,-187.059385,0.00017864,2]
[405851163,1771361439502,-422.0,0.00017886,2]
[405851164,1771361439512,-743.45912368,0.00017992,2]
[405851167,1771361439523,-160.0,0.00017992,2]
[405851169,1771361439533,-646.27,0.00018082,2]
[405851171,1771361439542,-397.0,0.00018206,2]
[405851172,1771361439552,-646.27,0.00018356,2]
[405851175,1771361439563,-397.0,0.00018439,2]
[405851177,1771361439573,-720.0,0.00018442,2]
[405851179,1771361439584,-397.0,0.00018499,2]
[405851181,1771361439594,-784.0,0.000185,2]
[405851183,1771361439604,-422.0,0.00018518,2]
[405851185,1771361439614,-187.059385,0.00018532,2]
[405851187,1771361439624,-646.27,0.0001863,2]
[405851189,1771361439635,-662.4943552,0.00018666,2]